bitfinex/quotes_BTCUSD_20240620
["timestamp","ask_amount","ask_price","bid_price","bid_amount"]
[1718886651341,0.31805705,66196.0,66181.0,0.45769034]
[1718886651342,0.75549,66182.0,66181.0,0.00407995]
[1718886652284,0.453294,66182.0,66181.0,0.15664107]
[1718886653041,0.75549,66182.0,66181.0,0.15664107]
[1718886654398,0.75549,66182.0,66181.0,0.16764107]
[1718886654644,0.75549,66182.0,66181.0,0.18164107]
[1718886654896,0.85549,66182.0,66181.0,0.15256112]
[1718886655109,0.85549,66182.0,66181.0,0.15664107]
[1718886655553,1.157686,66182.0,66181.0,0.15256112]
[1718886655876,1.157686,66182.0,66157.0,0.2765]
[1718886655877,0.302247,66171.0,66170.0,0.00407995]
[1718886656086,0.755617,66171.0,66170.0,0.15664107]
[1718886656565,0.45337,66171.0,66170.0,0.16406892]
[1718886656786,0.151123,66171.0,66170.0,0.16406892]
[1718886657038,0.45337,66171.0,66170.0,0.18406892]
[1718886657250,0.45337,66171.0,66170.0,0.17664107]
[1718886657530,0.45337,66171.0,66170.0,0.16407013]
[1718886657773,0.755617,66171.0,66170.0,0.16407013]
[1718886657980,0.755617,66171.0,66170.0,0.17807013]
[1718886658187,0.755617,66171.0,66170.0,0.17064107]
[1718886658592,0.755617,66171.0,66170.0,0.15664107]
[1718886658839,0.755617,66171.0,66170.0,0.17507013]
[1718886659057,1.057864,66171.0,66170.0,0.16407013]
[1718886659279,0.755617,66171.0,66170.0,0.16407013]
[1718886659504,0.755617,66171.0,66170.0,0.16764107]
[1718886659883,0.755617,66171.0,66170.0,0.17507013]
[1718886659884,1.057864,66171.0,66170.0,0.17507013]
[1718886660019,1.057864,66171.0,66170.0,0.18907013]
[1718886660223,1.057864,66171.0,66170.0,0.18164107]
[1718886660432,1.057864,66171.0,66170.0,0.16764107]
[1718886660433,0.755617,66171.0,66170.0,0.16764107]
[1718886660851,0.45337,66171.0,66170.0,0.19064107]
[1718886661065,0.553301,66181.0,66180.0,0.00407995]
[1718886661262,0.47735499,66181.0,66180.0,0.15664107]
[1718886661497,0.855502,66181.0,66180.0,0.15256112]
[1718886662051,0.755595,66173.0,66172.0,0.00407995]
[1718886662262,1.07900102,66173.0,66172.0,0.15664107]
[1718886662477,1.07900102,66173.0,66170.0,0.025]
[1718886662478,0.60000602,66173.0,66170.0,0.01807995]
[1718886662689,0.45337,66171.0,66170.0,0.014]
[1718886662897,1.60057902,66171.0,66170.0,0.014]
[1718886663337,1.360152,66169.0,66168.0,0.000946]
[1718886663547,1.49724007,66169.0,66168.0,0.000946]
[1718886663964,1.49724007,66169.0,66168.0,0.00089614]
[1718886663965,1.79949607,66169.0,66168.0,0.00089614]
[1718886664176,1.81519162,66169.0,66168.0,0.00089614]
[1718886664387,1.7940236,66169.0,66168.0,0.00089614]
[1718886664606,2.09688956,66169.0,66168.0,0.00089614]
[1718886664809,2.43932802,66169.0,66168.0,0.014]
[1718886665240,0.01592005,66163.0,66151.0,0.000946]
[1718886665453,1.77907742,66163.0,66154.0,0.00407995]
[1718886665663,1.89477297,66163.0,66155.0,0.00407995]
[1718886665884,1.49677297,66163.0,66162.0,0.15350712]
[1718886666099,1.17879442,66163.0,66162.0,0.15350712]
[1718886666333,1.48107742,66163.0,66162.0,0.000946]
[1718886667628,1.48140885,66163.0,66162.0,0.005946]
[1718886667832,1.48140885,66163.0,66162.0,0.016946]
[1718886667833,1.7996119,66163.0,66162.0,0.016946]
[1718886668048,2.20878009,66163.0,66162.0,0.016946]
[1718886668715,2.20878009,66163.0,66151.0,0.000946]
[1718886668716,2.055537,66152.0,66151.0,0.000946]
[1718886668931,0.756027,66135.0,66133.0,0.00407995]
[1718886669134,0.756027,66135.0,66134.0,0.15350712]
[1718886669135,1.05825619,66135.0,66134.0,0.15350712]
[1718886669344,1.05825619,66135.0,66134.0,0.16520725]
[1718886669562,1.05825619,66135.0,66134.0,0.1611273]
[1718886669563,1.15825619,66135.0,66134.0,0.1611273]
[1718886670011,1.48062178,66135.0,66134.0,0.000946]
[1718886670222,1.46066719,66135.0,66134.0,0.000946]
[1718886670853,1.67536719,66135.0,66134.0,0.000946]
[1718886671275,1.67636719,66135.0,66134.0,0.002946]
[1718886671741,1.67636719,66135.0,66134.0,0.003946]
[1718886671742,1.67536719,66135.0,66134.0,0.003946]
[1718886672163,1.71475412,66135.0,66134.0,0.000946]
[1718886672379,1.361079,66124.0,66123.0,0.00948199]
[1718886672601,1.361079,66124.0,66109.0,0.009482]
[1718886672602,0.01592005,66123.0,66109.0,0.009482]
[1718886672828,1.230141,66110.0,66109.0,0.009482]
[1718886673032,0.453802,66108.0,66107.0,0.000946]
[1718886673242,1.09825893,66108.0,66107.0,0.000946]
[1718886673458,1.09825893,66108.0,66105.0,9.9e-07]
[1718886673459,0.46973605,66106.0,66105.0,9.9e-07]
[1718886673677,0.46973605,66106.0,66104.0,0.009493]
[1718886673678,0.16719405,66105.0,66104.0,0.009493]
[1718886673910,0.01592005,66104.0,66087.0,0.00407995]
[1718886674130,1.16390138,66104.0,66087.0,0.00407995]
[1718886674334,1.16390138,66104.0,66076.0,0.029493]
[1718886674335,1.76900738,66104.0,66081.0,0.07628172]
[1718886674546,1.71934798,66104.0,66088.0,0.00407995]
[1718886674782,1.71934798,66104.0,66076.0,0.009493]
[1718886674783,2.02156152,66104.0,66087.0,0.00407995]
[1718886675011,1.86900738,66104.0,66087.0,0.00407995]
[1718886675236,1.86900738,66104.0,66076.0,0.009493]
[1718886675237,2.03257305,66102.0,66101.0,1e-06]
[1718886675444,2.03257305,66102.0,66076.0,0.009493]
[1718886675445,0.46980505,66096.0,66081.0,0.00407995]
[1718886675657,0.46980505,66096.0,66076.0,0.009493]
[1718886675658,1.42723445,66096.0,66095.0,1e-06]
[1718886675861,1.42723445,66096.0,66076.0,0.009493]
[1718886675862,0.15132,66085.0,66076.0,0.009493]
[1718886676076,1.11454698,66085.0,66076.0,0.009493]
[1718886676297,1.56684638,66085.0,66076.0,0.009493]
[1718886676511,1.86948638,66085.0,66076.0,0.009493]
[1718886676732,1.55092633,66085.0,66076.0,0.009493]
[1718886676947,1.56684638,66085.0,66076.0,0.01357295]
[1718886677149,1.56092633,66085.0,66078.0,0.00407995]
[1718886677367,1.55092633,66085.0,66076.0,0.009493]
[1718886677575,1.71092633,66085.0,66076.0,0.009493]
[1718886677791,1.72684638,66085.0,66076.0,0.009493]
[1718886678232,1.68064305,66077.0,66076.0,0.009493]
[1718886678444,1.4117054,66077.0,66076.0,0.009493]
[1718886678672,1.55395066,66077.0,66076.0,0.009493]
[1718886678879,1.362231,66068.0,66060.0,0.00407995]
[1718886679092,1.837649,66068.0,66060.0,0.00407995]
[1718886679299,2.22162845,66068.0,66051.0,0.00407995]
[1718886679504,2.22162845,66068.0,66039.0,0.24468172]
[1718886679505,0.454175,66054.0,66053.0,0.00407995]
[1718886679713,0.1,66067.0,66066.0,0.00407995]
[1718886679930,0.1,66067.0,66047.0,0.102]
[1718886679931,0.1,66067.0,66064.0,0.00407995]
[1718886680157,0.454159,66056.0,66055.0,0.00407995]
[1718886680375,0.302787,66053.0,66052.0,0.00407995]
[1718886680590,0.302787,66053.0,66033.0,0.101]
[1718886680591,0.15143,66037.0,66032.0,0.07628172]
[1718886680802,0.15143,66037.0,66030.0,0.2163]
[1718886681015,0.15143,66037.0,66036.0,0.02175277]
[1718886681016,0.04647649,66037.0,66036.0,0.02175277]
[1718886681248,0.29790649,66037.0,66036.0,0.02175277]
[1718886681460,0.73579,66037.0,66036.0,0.009504]
[1718886681672,0.73579,66037.0,66019.0,0.00407995]
[1718886681673,0.4919,66037.0,66019.0,0.00407995]
[1718886681888,0.757345,66020.0,66019.0,0.00407995]
[1718886682104,0.757345,66020.0,66009.0,0.009504]
[1718886682105,0.75746,66010.0,66009.0,0.009504]
[1718886682334,1.060444,66010.0,66009.0,0.01358395]
[1718886682567,1.160444,66010.0,66009.0,0.0218928]
[1718886682774,0.251492,66010.0,66009.0,0.01358395]
[1718886682990,0.1734,66033.0,66023.0,0.00407995]
[1718886683207,0.15146,66024.0,66023.0,0.15256112]
[1718886683424,0.151466,66021.0,66020.0,0.00407995]
[1718886683641,0.857332,66021.0,66020.0,0.00407995]
[1718886683850,0.454407,66020.0,66019.0,0.00507995]
[1718886684056,0.454407,66020.0,66019.0,0.15764107]
[1718886684057,0.251469,66020.0,66019.0,0.15764107]
[1718886684264,0.005,66020.0,66019.0,0.82311207]
[1718886684491,0.005,66020.0,66019.0,0.56964107]
[1718886684687,0.15146,66024.0,66023.0,0.00407995]
[1718886684892,0.15146,66024.0,66023.0,0.15664107]
[1718886685096,0.45438,66024.0,66023.0,0.15664107]
[1718886685302,1.06022,66024.0,66023.0,0.15256112]
[1718886685756,0.302938,66020.0,66019.0,0.00907995]
[1718886685949,0.02375601,66030.0,66015.0,0.00407995]
[1718886685950,0.01592005,66028.0,66015.0,0.00407995]
[1718886686155,0.02375601,66030.0,66014.0,0.00407995]
[1718886686156,0.15148,66015.0,66014.0,0.00407995]
[1718886686381,0.302956,66016.0,66012.0,0.15256112]
[1718886686382,0.151485,66013.0,66012.0,0.00407995]
[1718886686623,0.151475,66018.0,66017.0,0.00407995]
[1718886686828,0.1,66022.0,66021.0,0.00407995]
[1718886687039,0.02269384,66033.0,66021.0,0.21317995]
[1718886687246,0.1,66040.0,66029.0,0.10036167]
[1718886687469,0.30287,66035.0,66029.0,0.08036167]
[1718886687695,0.1,66034.0,66029.0,0.08036167]
[1718886687906,0.302869,66035.0,66034.0,0.00407995]
[1718886688109,0.02293197,66037.0,66027.0,0.00407995]
[1718886688246,0.02293197,66037.0,66021.0,0.007]
[1718886688247,0.757322,66022.0,66021.0,0.007]
[1718886688446,1.060251,66022.0,66021.0,0.007]
[1718886688648,0.45442,66018.0,66017.0,0.00407995]
[1718886689054,0.302952,66017.0,66016.0,0.00407995]
[1718886689255,0.75738,66017.0,66016.0,0.00407995]
[1718886689516,1.060332,66017.0,66016.0,0.15664107]
[1718886689951,0.1,66025.0,66021.0,0.00407995]
[1718886690271,0.15144,66033.0,66031.0,0.00407995]
[1718886690454,0.47685681,66035.0,66034.0,0.00407995]
[1718886690661,0.02255381,66035.0,66034.0,0.15664107]
[1718886690897,0.47803645,66038.0,66037.0,0.00407995]
[1718886691196,0.1756,66050.0,66037.0,0.01048604]
[1718886691402,0.302855,66038.0,66035.0,0.00407995]
[1718886691578,0.02375371,66043.0,66033.0,0.07628172]
[1718886691579,0.02375371,66043.0,66042.0,0.00407995]
[1718886691790,0.454249,66043.0,66042.0,0.01452766]
[1718886692013,0.3028,66050.0,66049.0,0.00407995]
[1718886692218,0.302819,66046.0,66045.0,0.00407995]
[1718886692442,0.47296,66059.0,66048.0,0.00407995]
[1718886692443,0.302808,66049.0,66048.0,0.00407995]
[1718886692661,0.32654508,66052.0,66049.0,0.00407995]
[1718886692662,0.1614,66050.0,66049.0,0.00407995]
[1718886692874,0.01,66050.0,66049.0,0.23292279]
[1718886693100,0.01,66050.0,66049.0,0.42911184]
[1718886693352,0.05,66090.0,66061.0,0.00407995]
[1718886693564,0.07562216,66142.0,66061.0,0.00407995]
[1718886693565,0.02374679,66067.0,66066.0,0.00407995]
[1718886693768,0.1731,66080.0,66067.0,0.00407995]
[1718886693972,0.302709,66070.0,66069.0,0.00407995]
[1718886694190,0.151354,66070.0,66069.0,0.01431281]
[1718886694343,0.454063,66070.0,66069.0,0.01431281]
[1718886694547,0.756772,66070.0,66069.0,0.16687393]
[1718886694749,0.756772,66070.0,66069.0,0.15664107]
[1718886694955,0.856772,66070.0,66069.0,0.15664107]
[1718886695159,0.251354,66070.0,66069.0,0.15256112]
[1718886695361,0.251354,66070.0,66069.0,0.15664107]
[1718886695640,0.1,66070.0,66069.0,0.17087393]
[1718886695884,0.1,66070.0,66069.0,0.16687393]
[1718886696084,0.001,66070.0,66069.0,0.19987393]
[1718886696290,0.001,66070.0,66069.0,0.25615565]
[1718886696486,0.001,66070.0,66069.0,0.27615565]
[1718886696692,0.454025,66076.0,66075.0,0.00407995]
[1718886696865,0.454025,66076.0,66075.0,0.15664107]
[1718886697234,0.756709,66076.0,66075.0,0.1668079]
[1718886697580,0.756709,66076.0,66075.0,0.15664107]
[1718886697744,0.856709,66076.0,66075.0,0.15664107]
[1718886698592,0.856709,66076.0,66075.0,0.16680571]
[1718886699069,0.302649,66084.0,66083.0,0.00407995]
[1718886699362,0.453971,66084.0,66083.0,0.15664107]
[1718886699582,0.1,66084.0,66083.0,0.17664107]
[1718886699787,0.251295,66096.0,66095.0,0.00407995]
[1718886699916,0.27432132,66096.0,66095.0,0.15664107]
[1718886700121,0.77950232,66096.0,66095.0,0.16257232]
[1718886700537,0.151295,66096.0,66095.0,0.16665227]
[1718886700743,0.453885,66096.0,66095.0,0.16665227]
[1718886700936,0.756475,66096.0,66095.0,0.16665227]
[1718886701147,0.756475,66096.0,66095.0,0.15664107]
[1718886702152,1.159065,66096.0,66095.0,0.15256112]
[1718886702564,1.159065,66096.0,66095.0,0.16364107]
[1718886702772,0.856475,66096.0,66095.0,0.16364107]
[1718886703177,0.856475,66096.0,66095.0,0.15964107]
[1718886703497,0.856475,66096.0,66095.0,0.15664107]
[1718886703692,1.163065,66096.0,66095.0,0.15764107]
[1718886703914,1.465655,66096.0,66095.0,0.001]
[1718886705025,1.48157505,66096.0,66095.0,0.001]
[1718886705228,0.756587,66086.0,66085.0,0.00407995]
[1718886705430,0.756587,66086.0,66085.0,0.15664107]
[1718886705929,0.756587,66086.0,66085.0,0.16421223]
[1718886706085,0.756587,66086.0,66085.0,0.15664107]
[1718886706522,0.453952,66086.0,66085.0,0.15664107]
[1718886706746,0.40359,66096.0,66092.0,0.00407995]
[1718886706747,0.453906,66093.0,66092.0,0.00407995]
[1718886706961,0.553885,66096.0,66095.0,0.00407995]
[1718886707292,0.05533873,66103.0,66095.0,0.00407995]
[1718886707293,0.20661773,66103.0,66102.0,0.00407995]
[1718886707539,0.03238383,66103.0,66102.0,0.10036167]
[1718886707744,0.03238383,66103.0,66102.0,0.73944267]
[1718886707745,0.00865,66103.0,66102.0,0.73944267]
[1718886707981,0.00865,66103.0,66102.0,1.07302208]
[1718886707982,1e-08,66103.0,66102.0,1.07302208]
[1718886708216,1e-08,66103.0,66102.0,1.4318832]
[1718886708512,1e-08,66103.0,66102.0,1.7844452]
[1718886709131,1e-08,66103.0,66102.0,1.7904452]
[1718886709570,1e-08,66103.0,66102.0,1.7984452]
[1718886709796,1e-08,66103.0,66102.0,2.1150072]
[1718886709999,1e-08,66103.0,66102.0,1.8124452]
[1718886710223,1e-08,66103.0,66102.0,1.7984452]
[1718886710431,1e-08,66103.0,66102.0,1.8124452]
[1718886710641,1e-08,66103.0,66102.0,2.1150072]
[1718886710846,0.453665,66128.0,66127.0,0.00407995]
[1718886711085,0.151222,66128.0,66127.0,0.15664107]
[1718886711310,0.302403,66137.0,66129.0,0.00407995]
[1718886711542,0.302409,66136.0,66133.0,0.00407995]
[1718886711742,0.302409,66136.0,66133.0,0.17664107]
[1718886711743,0.151204,66136.0,66133.0,0.17664107]
[1718886711944,0.302394,66139.0,66133.0,0.18449191]
[1718886711945,0.159858,66134.0,66133.0,0.18449191]
[1718886712163,0.159858,66134.0,66133.0,0.16449191]
[1718886712960,0.00865,66134.0,66133.0,0.18449191]
[1718886713183,0.00865,66134.0,66133.0,0.95642191]
[1718886713400,0.00865,66134.0,66133.0,1.50344191]
[1718886713597,0.00865,66134.0,66133.0,1.72094191]
[1718886713797,0.00865,66134.0,66133.0,1.36052191]
[1718886714014,0.00865,66134.0,66133.0,0.78289191]
[1718886714205,0.00865,66134.0,66133.0,0.93410191]
[1718886714410,0.00865,66134.0,66133.0,0.73289191]
[1718886714635,0.00865,66134.0,66133.0,0.78289191]
[1718886714838,0.00865,66134.0,66133.0,0.94210191]
[1718886715194,0.00865,66134.0,66133.0,0.57359191]
[1718886715443,0.00865,66134.0,66133.0,0.85289191]
[1718886715645,0.00865,66134.0,66133.0,1.43152191]
[1718886715895,0.00865,66134.0,66133.0,1.63194191]
[1718886716156,0.00865,66134.0,66133.0,1.73394191]
[1718886716378,0.00865,66134.0,66133.0,2.02436191]
[1718886716613,0.00865,66134.0,66133.0,2.12436191]
[1718886716872,0.00865,66147.0,66146.0,0.12407995]
[1718886717110,0.00865,66147.0,66146.0,0.98762107]
[1718886717341,0.00865,66147.0,66146.0,1.70210496]
[1718886718073,0.00865,66163.0,66146.0,1.70210496]
[1718886718074,0.00865,66163.0,66162.0,0.02407995]
[1718886718284,0.00865,66163.0,66162.0,0.15664107]
[1718886718285,0.159791,66163.0,66162.0,0.15664107]
[1718886718524,0.00865,66163.0,66162.0,0.18431937]
[1718886718767,0.00865,66163.0,66162.0,0.54831937]
[1718886719000,0.159791,66163.0,66162.0,0.54831937]
[1718886719238,0.159791,66163.0,66162.0,0.16431937]
[1718886719239,0.764357,66163.0,66162.0,0.16431937]
[1718886719693,0.00865,66163.0,66162.0,0.16656112]
[1718886720213,0.00865,66163.0,66162.0,0.15256112]
[1718886720697,0.00865,66163.0,66162.0,0.16356112]
[1718886721173,0.00865,66163.0,66162.0,0.15256112]
[1718886721864,0.00865,66163.0,66162.0,0.16456112]
[1718886721865,0.159791,66163.0,66162.0,0.16456112]
[1718886722097,0.00865,66163.0,66162.0,0.15256112]
[1718886722356,0.00865,66163.0,66162.0,0.45484912]
[1718886722624,0.00865,66163.0,66162.0,1.10458112]
[1718886722850,0.00865,66163.0,66162.0,1.49198112]
[1718886723082,1e-08,66163.0,66162.0,1.50598112]
[1718886723330,1e-08,66163.0,66162.0,1.49198112]
[1718886723565,0.05,66186.0,66162.0,1.49198112]
[1718886723566,0.151099,66182.0,66162.0,1.64312512]
[1718886723864,0.3258828,66187.0,66169.0,0.76524512]
[1718886723865,0.4778828,66187.0,66169.0,0.76524512]
[1718886724083,0.1511,66181.0,66169.0,0.48598912]
[1718886724324,0.05,66185.0,66169.0,0.78824512]
[1718886724325,0.151093,66185.0,66169.0,0.78824512]
[1718886724587,0.302176,66187.0,66169.0,0.78824512]
[1718886724588,0.151088,66187.0,66169.0,1.09050112]
[1718886724806,0.302185,66185.0,66169.0,0.78824512]
[1718886725044,0.151096,66183.0,66169.0,0.78824512]
[1718886725279,0.002,66183.0,66169.0,0.33486112]
[1718886725521,0.302178,66187.0,66169.0,0.78824512]
[1718886725762,0.2723,66196.0,66169.0,0.78824512]
[1718886725763,0.2106,66204.0,66169.0,2.46565712]
[1718886726015,0.302084,66207.0,66191.0,0.1593]
[1718886726016,0.00865,66201.0,66191.0,0.1593]
[1718886726257,0.00865,66201.0,66196.0,0.46292712]
[1718886726511,0.00865,66201.0,66200.0,0.914585]
[1718886726986,0.00865,66201.0,66200.0,0.713657]
[1718886727212,0.00865,66201.0,66200.0,0.736657]
[1718886727457,0.00865,66201.0,66200.0,1.642999]
[1718886727717,0.02258099,66228.0,66216.0,0.1593]
[1718886727936,0.4309,66235.0,66212.0,0.302057]
[1718886727937,0.301972,66232.0,66224.0,0.15256112]
[1718886728152,0.301972,66232.0,66225.0,0.00301967]
[1718886728153,0.05864,66230.0,66225.0,0.00301967]
[1718886728407,0.00864,66230.0,66225.0,0.00301967]
[1718886728641,0.00864,66230.0,66229.0,0.31186112]
[1718886729150,0.00864,66230.0,66229.0,0.33486112]
[1718886729384,0.00864,66237.0,66229.0,0.33486112]
[1718886729385,0.00864,66237.0,66229.0,0.73596112]
[1718886729609,0.00864,66237.0,66231.0,0.1593]
[1718886729862,0.00864,66237.0,66233.0,0.1593]
[1718886730109,0.159613,66237.0,66236.0,0.15256112]
[1718886730616,0.463559,66237.0,66236.0,0.15256112]
[1718886730848,0.461559,66237.0,66236.0,0.15256112]
[1718886731076,0.885505,66237.0,66236.0,0.15256112]
[1718886731332,0.461559,66237.0,66236.0,0.15256112]
[1718886731562,0.159613,66237.0,66236.0,0.15256112]
[1718886732284,0.159613,66237.0,66236.0,0.31186112]
[1718886732285,0.00864,66237.0,66236.0,0.31186112]
[1718886732552,0.00864,66237.0,66236.0,0.78778612]
[1718886732765,0.00864,66237.0,66236.0,1.53853212]
[1718886733008,0.00864,66239.0,66238.0,0.612211]
[1718886733238,0.00864,66239.0,66238.0,0.33486112]
[1718886733464,0.159608,66239.0,66238.0,0.31186112]
[1718886733692,0.159608,66239.0,66238.0,0.15256112]
[1718886733966,0.00864,66239.0,66238.0,0.15256112]
[1718886734204,0.00864,66239.0,66238.0,1.00757212]
[1718886734441,0.00864,66239.0,66238.0,1.17257212]
[1718886734897,0.00864,66239.0,66238.0,0.53736112]
[1718886735127,0.00864,66239.0,66238.0,0.15256112]
[1718886735355,0.461544,66239.0,66238.0,0.16456112]
[1718886735800,0.612512,66239.0,66238.0,0.15256112]
[1718886736038,0.00864,66239.0,66238.0,0.15256112]
[1718886736317,0.00864,66239.0,66238.0,0.31186112]
[1718886736560,0.00864,66239.0,66238.0,0.46283112]
[1718886736791,0.00864,66239.0,66238.0,1.14097212]
[1718886737027,0.00863,66249.0,66248.0,0.1593]
[1718886737267,0.00863,66249.0,66248.0,0.48580812]
[1718886737502,0.00863,66249.0,66248.0,0.33486112]
[1718886737749,0.00863,66249.0,66248.0,0.78770312]
[1718886737978,0.00863,66249.0,66248.0,0.33486112]
[1718886738207,0.00863,66249.0,66248.0,0.48580812]
[1718886738493,0.00863,66249.0,66248.0,1.08959812]
[1718886738707,0.00863,66249.0,66248.0,0.78770312]
[1718886738938,0.00863,66249.0,66248.0,0.33486112]
[1718886739226,0.159575,66249.0,66248.0,0.15256112]
[1718886739459,0.763357,66249.0,66248.0,0.15256112]
[1718886739681,0.865357,66249.0,66248.0,0.16656112]
[1718886739920,1.067248,66249.0,66248.0,0.16656112]
[1718886740173,1.40499297,66249.0,66248.0,0.16656112]
[1718886740413,1.75688397,66249.0,66248.0,0.16656112]
[1718886740650,1.88688397,66249.0,66248.0,0.014]
[1718886740879,2.20877497,66249.0,66248.0,0.014]
[1718886741111,0.754932,66231.0,66230.0,0.060505]
[1718886741348,0.754932,66231.0,66230.0,0.15256112]
[1718886741612,1.328905,66231.0,66230.0,0.15256112]
[1718886741821,1.558878,66231.0,66230.0,0.15256112]
[1718886742038,1.558878,66231.0,66206.0,0.17]
[1718886742039,0.623973,66231.0,66212.0,0.0151]
[1718886742254,0.002,66219.0,66214.0,0.45769034]
[1718886742466,0.302046,66215.0,66210.0,0.06052]
[1718886742695,0.453184,66198.0,66193.0,0.1768]
[1718886742923,0.453184,66198.0,66192.0,0.0302]
[1718886742924,0.453184,66198.0,66192.0,0.0151]
[1718886743133,0.102,66206.0,66186.0,0.2194]
[1718886743134,0.302153,66192.0,66186.0,0.2194]
[1718886743347,0.05,66206.0,66186.0,0.2194]
[1718886743348,0.102,66198.0,66186.0,0.2194]
[1718886743567,0.05,66206.0,66186.0,0.2194]
[1718886743772,0.302101,66203.0,66186.0,0.2194]
[1718886743982,0.151072,66194.0,66186.0,0.2194]
[1718886744212,0.302101,66203.0,66187.0,0.060538]
[1718886744213,0.102,66203.0,66187.0,0.060538]
[1718886744420,0.453253,66188.0,66187.0,0.060538]
[1718886744631,0.304165,66189.0,66187.0,0.15256112]
[1718886744840,1.057591,66188.0,66187.0,0.15256112]
[1718886745051,0.55528,66184.0,66183.0,0.060545]
[1718886745253,0.453357,66173.0,66172.0,0.0302]
[1718886745474,0.15550278,66173.0,66172.0,0.0302]
[1718886745687,0.05,66187.0,66173.0,0.1593]
[1718886745890,0.151105,66179.0,66174.0,0.00302168]
[1718886746108,0.151108,66178.0,66173.0,0.1593]
[1718886746324,0.15111,66177.0,66173.0,0.1593]
[1718886746551,0.10782547,66226.0,66173.0,0.1593]
[1718886746552,0.2764,66191.0,66176.0,0.15256112]
[1718886746817,0.302152,66192.0,66183.0,0.1593]
[1718886747037,0.302152,66192.0,66191.0,0.15256112]
[1718886747038,0.302151,66192.0,66191.0,0.15256112]
[1718886747247,0.302094,66205.0,66193.0,0.1593]
[1718886747483,0.102,66207.0,66194.0,0.00302085]
[1718886747697,0.151062,66198.0,66194.0,0.01310391]
[1718886747916,0.102,66207.0,66194.0,0.01310391]
[1718886747917,0.302115,66200.0,66194.0,0.01310391]
[1718886748163,1.117436,66198.0,66197.0,0.15256112]
[1718886748409,0.05,66201.0,66194.0,0.01008306]
[1718886748410,1.279465,66196.0,66195.0,0.15256112]
[1718886748642,0.302081,66208.0,66179.0,0.45769034]
[1718886748643,0.151103,66180.0,66179.0,0.45769034]
[1718886748865,0.453309,66180.0,66179.0,0.45769034]
[1718886749078,0.453309,66180.0,66179.0,0.162746]
[1718886749314,0.755515,66180.0,66179.0,0.15256112]
[1718886749520,0.302161,66190.0,66180.0,0.151101]
[1718886749729,0.302161,66190.0,66171.0,0.060554]
[1718886749730,0.302146,66194.0,66189.0,0.15256112]
[1718886749943,0.05,66199.0,66189.0,0.15256112]
[1718886749944,0.15108,66190.0,66189.0,0.15256112]
[1718886750157,0.45324,66190.0,66189.0,0.15256112]
[1718886750363,0.8054,66190.0,66189.0,0.15256112]
[1718886750788,0.8052,66190.0,66189.0,0.15256112]
[1718886750998,0.07,66193.0,66189.0,0.15256112]
[1718886750999,0.15108,66191.0,66189.0,0.15256112]
[1718886751205,0.15108,66191.0,66178.0,0.604426]
[1718886751206,0.151076,66192.0,66190.0,0.15256112]
[1718886751460,0.453227,66192.0,66191.0,0.15256112]
[1718886752117,0.12,66198.0,66191.0,0.15256112]
[1718886752118,0.302127,66198.0,66191.0,0.15256112]
[1718886752323,0.302127,66198.0,66182.0,0.302196]
[1718886752324,0.302133,66196.0,66195.0,0.15256112]
[1718886752563,0.453201,66196.0,66195.0,0.15256112]
[1718886752898,0.30212,66199.0,66195.0,0.15256112]
[1718886753100,0.151062,66198.0,66195.0,0.15256112]
[1718886753309,0.404085,66207.0,66197.0,0.15256112]
[1718886753310,0.253043,66207.0,66197.0,0.15256112]
[1718886753532,0.15105,66203.0,66202.0,0.15256112]
[1718886754033,0.05,66210.0,66202.0,0.46291112]
[1718886754034,0.151035,66210.0,66202.0,0.46291112]
[1718886754235,0.151034,66210.0,66203.0,0.00302052]
[1718886755026,0.151034,66210.0,66209.0,0.15256112]
[1718886755255,0.755172,66210.0,66209.0,0.15256112]
[1718886755487,1.229241,66210.0,66209.0,0.15256112]
[1718886755684,1.279241,66210.0,66209.0,0.15256112]
[1718886756308,1.635453,66203.0,66202.0,0.01]
[1718886756512,1.785453,66203.0,66202.0,0.16256112]
[1718886756738,2.087554,66203.0,66202.0,0.16256112]
[1718886757155,1.785453,66203.0,66202.0,0.15256112]
[1718886758204,1.735453,66203.0,66202.0,0.15356112]
[1718886758411,0.453151,66203.0,66202.0,0.15356112]
[1718886758623,0.15105,66203.0,66202.0,0.15356112]
[1718886758824,0.151044,66206.0,66202.0,0.15256112]
[1718886759030,0.151029,66213.0,66205.0,0.30360612]
[1718886759241,0.151029,66213.0,66205.0,0.15256112]
[1718886759242,0.45313,66206.0,66205.0,0.15256112]
[1718886759445,0.755217,66206.0,66205.0,0.15256112]
[1718886759656,0.151043,66206.0,66205.0,0.15256112]
[1718886759863,0.151028,66213.0,66205.0,0.30360612]
[1718886760104,0.302047,66215.0,66209.0,0.15256112]
[1718886760105,0.453072,66215.0,66209.0,0.15256112]
[1718886760303,0.151029,66213.0,66209.0,0.15256112]
[1718886760672,0.15103,66212.0,66209.0,0.15256112]
[1718886760888,0.05,66221.0,66211.0,0.15256112]
[1718886761094,0.15,66222.0,66202.0,0.475403]
[1718886761095,0.151003,66224.0,66218.0,0.15256112]
[1718886761955,0.151003,66224.0,66219.0,0.00301992]
[1718886762314,0.151003,66224.0,66214.0,0.2154]
[1718886762315,0.302009,66223.0,66222.0,0.15256112]
[1718886762515,0.755022,66223.0,66222.0,0.15256112]
[1718886762693,0.272,66231.0,66222.0,0.15256112]
[1718886762694,0.301988,66228.0,66222.0,0.15256112]
[1718886762895,0.301988,66228.0,66209.0,0.46369034]
[1718886762896,0.151002,66224.0,66223.0,0.15256112]
[1718886763122,0.605007,66224.0,66223.0,0.15256112]
[1718886763480,0.805012,66224.0,66223.0,0.15256112]
[1718886763686,0.907012,66224.0,66223.0,0.15256112]
[1718886763881,1.279017,66224.0,66223.0,0.15256112]
[1718886764875,1.279017,66224.0,66223.0,0.16656112]
[1718886765280,1.279017,66224.0,66223.0,0.15256112]
[1718886765722,1.279017,66224.0,66223.0,0.16456112]
[1718886766137,1.107017,66224.0,66223.0,0.16456112]
[1718886766509,1.229017,66224.0,66223.0,0.16456112]
[1718886766930,0.805012,66224.0,66223.0,0.16456112]
[1718886767178,0.927012,66224.0,66223.0,0.15256112]
[1718886767607,0.927012,66224.0,66223.0,0.16456112]